fUSD/lending_fUSD_20241122
["ID","MTS","AMOUNT","RATE_DAILY","PERIOD"]
[343014460,1732285838407,-1000.0,0.00082852,120]
[343014461,1732285838417,-39.11342846,0.00083198,18]
[343014462,1732285838428,-957.90983664,0.00083198,18]
[343014463,1732285838439,-2.9767349,0.00083198,18]
[343014464,1732285838449,-546.72757216,0.00083233,15]
[343014465,1732285838458,-400.0,0.00083371,120]
[343014466,1732285838468,-400.0,0.00083371,120]
[343014467,1732285838477,-400.0,0.00083371,120]
[343014468,1732285838486,-400.0,0.00083371,120]
[343014469,1732285838495,-375.39569294,0.00083372,15]
[343014470,1732285838506,-2385.47819203,0.00083372,15]
[343014471,1732285838517,-1006.21315259,0.00083372,15]
[343014472,1732285838532,-557.91029838,0.00083372,15]
[343014473,1732285838541,-97.78615092,0.00084557,120]
[343014474,1732285838552,-477.37784908,0.00084557,120]
[343014475,1732285838561,-156.21,0.00084682,120]
[343014476,1732285838571,-546.72757216,0.00086011,15]
[343014477,1732285838581,-6912.33999837,0.00086668,7]
[343014478,1732285838593,-25038.85765913,0.00086668,7]
[343014479,1732285838605,-400.0,0.00086677,120]
[343014480,1732285838615,-400.0,0.00086677,120]
[343014481,1732285838625,-400.0,0.00086677,120]
[343014482,1732285838635,-400.0,0.00086677,120]
[343014483,1732285838644,-4324.99733594,0.00086678,15]
[343014484,1732285838653,-1000.0,0.00087641,7]
[343014485,1732285838664,-400.0,0.00087999,120]
[343014486,1732285838674,-400.0,0.00087999,120]
[343014487,1732285838683,-400.0,0.00087999,120]
[343014488,1732285838692,-367.95734773,0.00087999,120]
[343014489,1732285838702,-9069.0,0.00088,120]
[343014490,1732285838711,-546.72757216,0.00088789,15]
[343014491,1732285838720,-400.0,0.00089501,120]
[343014492,1732285838730,-400.0,0.00089501,120]
[343014493,1732285838740,-400.0,0.00089501,120]
[343014494,1732285838749,-1647.72,0.00089502,120]
[343014495,1732285838759,-1000.0,0.000897,7]
[343014496,1732285838768,-838.17192504,0.00089973,8]
[343014497,1732285838779,-8752.22233078,0.00089973,8]
[343014498,1732285838790,-756.82627028,0.00089973,8]
[343014499,1732285838801,-499.994922,0.00089973,8]
[343014500,1732285838823,-310.74603844,0.00089973,8]
[343014501,1732285838834,-397.165,0.00089973,8]
[343014502,1732285838911,189.78,0.00059393,30]
[343014506,1732285839710,-189.78,0.0008909,30]
[343014507,1732285839720,-516.26,0.00089973,8]
[343014508,1732285839762,-320.28066761,0.00089973,8]
[343014509,1732285839815,-1252.88657406,0.00089973,8]
[343014510,1732285839827,-9920.5,0.00089973,8]
[343014511,1732285839838,-1533.60952114,0.00089973,8]
[343014512,1732285839860,-686.24633394,0.00089973,8]
[343014513,1732285839906,-12769.99274751,0.00089973,8]
[343014514,1732285839915,-4324.99733594,0.00089983,15]
[343014515,1732285839924,-31951.1976575,0.0008999,8]
[343014516,1732285839933,-13660.21887245,0.0009,120]
[343014517,1732285839945,-1934.69097362,0.0009,120]
[343014518,1732285839956,-11600.0,0.0009,120]
[343014519,1732285839991,-3798.43220689,0.0009,120]
[343014520,1732285840003,-6.65794704,0.0009,120]
[343014521,1732285840012,-1934.13205296,0.0009,30]
[343014523,1732285840043,-73.30198665,0.0009,30]
[343014524,1732285840052,-163.094,0.0009073,120]
[343014525,1732285840061,-180.86,0.00090975,2]
[343014526,1732285840070,-289.09402835,0.00091567,15]
[343014528,1732285840081,-257.63354381,0.00091567,15]
[343014529,1732285840091,-1000.0,0.00092057,120]
[343014530,1732285840104,-218.05,0.00092872,120]
[343014531,1732285840113,-6751.67603862,0.00093,120]
[343014532,1732285840122,-575.164,0.00093038,120]
[343014533,1732285840131,-180.86,0.00093239,2]
[343014534,1732285840141,-4133.97065418,0.0009328,9]
[343014536,1732285840222,-22295.3925,0.0009328,9]
[343014537,1732285840397,-977.03,0.0009328,9]
[343014542,1732285842824,-512.2553004,0.0009328,9]
[343014545,1732285842837,-931.13278959,0.0009328,9]
[343014548,1732285842868,-3101.41641333,0.0009328,9]
[343014550,1732285842878,-4324.99733594,0.00093289,15]
[343014552,1732285842888,-38554.9023308,0.0009329,9]
[343014555,1732285842898,-31951.1976575,0.0009329,9]
[343014557,1732285842908,-55774.32062953,0.000933,120]
[343014559,1732285842918,-156.21,0.000934,120]
[343014561,1732285842928,-10000.0,0.0009396,120]
[343014563,1732285842938,-20000.0,0.00093968,120]
[343014565,1732285842948,-20000.0,0.00094,120]
[343014567,1732285842957,-20000.0,0.00094,120]
[343014569,1732285842967,-1160.65,0.00094232,2]
[343014571,1732285842976,-1160.65,0.00094257,2]
[343014573,1732285842986,-1160.65,0.00094281,2]
[343014575,1732285842995,-1160.65,0.00094306,2]
[343014577,1732285843004,-1160.65,0.00094331,2]
[343014578,1732285843013,-546.72757216,0.00094344,15]
[343014579,1732285843023,-1160.65,0.00094356,2]
[343014580,1732285843032,-1160.65,0.00094381,2]
[343014581,1732285843041,-50000.0,0.000944,120]
[343014582,1732285843051,-1160.65,0.00094405,2]
[343014583,1732285843061,-1160.65,0.0009443,2]
[343014584,1732285843071,-1160.65,0.00094455,2]
[343014585,1732285843080,-1160.65,0.0009448,2]
[343014586,1732285843090,-20000.0,0.0009449,120]
[343014587,1732285843103,-20000.0,0.000945,120]
[343014588,1732285843112,-1160.65,0.00094505,2]
[343014589,1732285843122,-1160.65,0.00094529,2]
[343014590,1732285843131,-1160.65,0.00094554,2]
[343014591,1732285843140,-1160.65,0.00094579,2]
[343014592,1732285843150,-8614.16342103,0.000946,120]
[343014593,1732285843163,-523.65246954,0.000946,120]
[343014594,1732285843174,-2935.17,0.000946,120]
[343014595,1732285843186,-7927.01410943,0.000946,120]
[343014596,1732285843195,-1160.65,0.00094604,2]
[343014598,1732285843209,-1160.65,0.00094629,2]
[343014599,1732285843230,-1160.65,0.00094653,2]
[343014600,1732285843241,-1160.65,0.00094678,2]
[343014601,1732285843251,-1160.65,0.00094703,2]
[343014602,1732285843261,-250.0,0.00094717,120]
[343014603,1732285843270,-6394.98737229,0.000949,120]
[343014604,1732285843283,-2833.13889606,0.000949,120]
[343014605,1732285843295,-10771.87373165,0.000949,120]
[343014607,1732285843426,-1403.72626835,0.000949,34]
[343014608,1732285843439,-432.0,0.000949,34]
[343014609,1732285843451,-1864.27373165,0.000949,34]
[343014610,1732285843461,-1053.23993323,0.000949,83]
[343014611,1732285843471,-443.25700348,0.00094973,7]
[343014612,1732285843482,-57.91624741,0.00094973,7]
[343014613,1732285843491,-261.50394353,0.00094973,60]
[343014614,1732285843501,-583.13894866,0.00094979,120]
[343014615,1732285843512,-500.0,0.00094979,120]
[343014616,1732285843542,-1916.86105134,0.00094979,120]
[343014617,1732285843553,-8087.0735218,0.0009498,9]
[343014618,1732285843564,-708.35152064,0.0009498,9]
[343014619,1732285843576,-381.82056366,0.0009498,9]
[343014620,1732285843588,-293.30521316,0.0009498,9]
[343014621,1732285843613,-1605.57003,0.0009498,9]
[343014622,1732285843624,-52699.05460001,0.0009498,9]
[343014623,1732285843640,-1888.58,0.0009498,9]
[343014624,1732285844037,-15525.36955174,0.0009498,9]
[343014625,1732285844049,-14664.46797159,0.0009498,9]
[343014626,1732285844058,-34326.40901749,0.0009499,9]
[343014627,1732285844074,-2573.29518061,0.0009499,9]
[343014638,1732285846002,-20384.1602,0.0009499,9]
[343014639,1732285847673,-8132.70034499,0.0009499,9]
[343014640,1732285847719,-996.81523776,0.0009499,9]
[343014641,1732285847765,-5346.49873542,0.0009499,9]
[343014642,1732285847777,-6380.0,0.0009499,9]
[343014643,1732285847788,-4440.0,0.0009499,9]
[343014644,1732285847816,-7317.33757279,0.0009499,9]
[343014645,1732285847828,-38036.395,0.0009499,9]
[343014646,1732285847840,-55614.97828,0.0009499,9]
[343014648,1732285848156,1117.07616861,0.000498,120]
[343014649,1732285848177,3077.62785432,0.000498,120]
[343014650,1732285848201,945.39875271,0.000498,120]
[343014651,1732285848223,776.50416732,0.000498,120]
[343014652,1732285849747,240.3035,0.00047719,2]
[343014653,1732285849964,240.3035,0.00052083,120]
[343014654,1732285851065,190.538,0.00047719,2]
[343014655,1732285853197,150.0,0.0005169,2]
[343014659,1732285935743,500.0,0.0005,120]
[343014660,1732285939835,151.0,0.0003,120]
[343014661,1732285952249,151.0,0.0003,120]
[343014662,1732285952829,151.0,0.00042,120]
[343014663,1732286001206,-151.0,0.00054,120]
[343014664,1732286001798,500.0,0.00054,120]
[343014665,1732286004193,250.0,0.00031,2]
[343014666,1732286026367,500.0,0.0005,120]
[343014676,1732286191274,155.9,0.00056635,2]
[343014677,1732286193985,160.27,0.00041096,2]
[343014678,1732286194189,160.27,0.0005175,2]
[343014681,1732286271124,3274.11395964,0.0006,2]
[343014682,1732286280900,177.13,0.00019178,2]
[343014683,1732286281258,177.13,0.00024658,2]
[343014684,1732286281603,177.13,0.00030137,2]
[343014685,1732286282140,177.13,0.00035616,2]
[343014686,1732286282303,177.13,0.00041096,2]
[343014687,1732286359584,346.0,0.00039,2]
[343014688,1732286448924,9898.64366536,0.000498,120]
[343014689,1732286578050,500.0,0.0006,5]
[343014706,1732286702690,150.0,0.00034548,10]
[343014707,1732286706178,747.0,0.00054795,120]
[343014708,1732286756206,-284.9191861,0.00061993,2]
[343014709,1732286757116,-1224.97405567,0.00061993,2]
[343014710,1732286803105,-716.916326,0.00061583,30]
[343014711,1732286803129,-156.17820565,0.00061893,2]
[343014712,1732286828593,-176.03835307,0.00061893,2]
[343014713,1732286830177,-272.22605964,0.00061893,2]
[343014714,1732286835005,500.0,0.00053153,60]
[343014715,1732286840095,-160.27,0.00062405,120]
[343014716,1732286840116,-151.0,0.00066,120]
[343014717,1732286840139,-300.0,0.00066,120]
[343014718,1732286840160,-163.6,0.00067167,2]
[343014719,1732286840182,-250.0,0.0007,120]
[343014720,1732286840203,-510.0,0.0007,30]
[343014721,1732286840224,-157.107,0.000714,120]
[343014722,1732286840318,-160.27,0.00073059,120]
[343014723,1732286840340,-168.2,0.00073646,2]
[343014724,1732286840361,-168.2,0.00073738,2]
[343014725,1732286840382,-168.2,0.0007383,2]
[343014726,1732286840403,-168.2,0.00073922,2]
[343014727,1732286840424,-168.2,0.00074014,2]
[343014728,1732286840445,-996.0579777,0.00074899,120]
[343014729,1732286840466,-157.128,0.0007516,120]
[343014730,1732286840487,-179.68,0.00076707,2]
[343014731,1732286840509,-151.0,0.00078,120]
[343014732,1732286840531,-157.189,0.0007892,120]
[343014733,1732286840553,-179.68,0.00078971,2]
[343014734,1732286840573,-1852.42,0.00079254,2]
[343014735,1732286840593,-1000.0,0.00079296,120]
[343014736,1732286840613,-1075.61,0.00079316,2]
[343014737,1732286840633,-250.0,0.0007933,120]
[343014738,1732286840657,-250.0,0.00079732,120]
[343014739,1732286840678,-1528.9504355,0.0008,120]
[343014740,1732286840698,-652.59,0.00080469,30]
[343014741,1732286840720,-179.68,0.00081235,2]
[343014742,1732286840742,-250.0,0.00081861,120]
[343014743,1732286840781,-4725.0,0.000821,120]
[343014744,1732286840822,-157.136,0.0008268,120]
[343014745,1732286840866,-179.68,0.00083499,2]
[343014746,1732286840908,-160.27,0.00083714,120]
[343014747,1732286840951,-840.62,0.00084143,40]
[343014748,1732286840992,-179.68,0.00085763,2]
[343014749,1732286841029,-157.13,0.0008644,120]
[343014750,1732286841069,-179.68,0.00088027,2]
[343014751,1732286841105,-272.22991061,0.00089209,120]
[343014752,1732286854107,-727.77008939,0.00089209,120]
[343014753,1732286854130,-155.9,0.00089238,10]
[343014754,1732286854153,-302.173,0.000893,120]
[343014755,1732286854175,-2519.69,0.0008985,120]
[343014756,1732286854198,-303.0,0.0009,120]
[343014757,1732286854223,-302.0,0.0009,120]
[343014758,1732286854246,-500.0,0.0009,4]
[343014759,1732286854269,-157.18,0.000902,120]
[343014760,1732286854291,-179.68,0.0009029,2]
[343014761,1732286854312,-5683.25930612,0.000904,120]
[343014762,1732286949123,-150.0,0.00071522,2]
[343014763,1732286949145,-498.36678365,0.00086,120]
[343014764,1732286956083,-858.82481626,0.00086,120]
[343014765,1732286960122,-1154.26396073,0.00086,120]
[343014766,1732286966094,-600.0329024,0.00086,120]
[343014783,1732287032029,-2832.6,0.00086,120]
[343014788,1732287032223,-3781.022818,0.00086,120]
[343014789,1732287032233,-1076.477183,0.000903,2]
[343014790,1732287032245,-1119.79225045,0.000903,2]
[343014791,1732287032254,-197.99110958,0.000903,2]
[343014792,1732287032263,-21867.24370872,0.000903,2]
[343014793,1732287032275,-976.55251709,0.000903,2]
[343014794,1732287032286,-1620.40512912,0.000903,2]
[343014795,1732287032310,-536.1404,0.000903,2]
[343014799,1732287037997,-200.0,0.000859,5]
[343014800,1732287038007,-3355.12178743,0.000903,2]
[343014801,1732287038019,-303.97448345,0.000903,2]
[343014803,1732287038032,-22473.55630146,0.000903,2]
[343014805,1732287038042,-4277.68069854,0.000904,120]
[343014806,1732287038054,-37827.0391471,0.000904,120]
[343014807,1732287038064,-3147.16631143,0.000904,120]
[343014808,1732287038074,-751.1,0.00090605,120]
[343014809,1732287038084,-155.72,0.00090612,2]
[343014810,1732287038094,-781.36964147,0.0009078,7]
[343014811,1732287038121,-1355.60719289,0.0009078,7]
[343014812,1732287038131,-30685.64911608,0.000914,120]
[343014813,1732287038152,-1768.21753506,0.000914,120]
[343014824,1732287038986,-2534.96203508,0.000914,120]
[343014825,1732287038998,-4998.0,0.000914,120]
[343014826,1732287039010,-547.6503144,0.000914,120]
[343014827,1732287039057,-1609.43029927,0.000914,120]
[343014828,1732287039069,-6849.5636134,0.000914,120]
[343014829,1732287039081,-1006.52708671,0.000914,120]
[343014830,1732287039090,-1054.2980021,0.0009191,15]
[343014831,1732287039100,-205.0,0.0009201,120]
[343014832,1732287039113,-2082.08548484,0.000924,120]
[343014833,1732287039131,-47917.91451516,0.000924,120]
[343014834,1732287039141,-250.0,0.00092474,120]
[343014835,1732287039150,-250.0,0.00092542,120]
[343014836,1732287039160,-1054.29800206,0.00092798,15]
[343014837,1732287039169,-20000.0,0.0009315,120]
[343014838,1732287039178,-16981.27109307,0.0009315,120]
[343014839,1732287039188,-500.0,0.0009315,120]
[343014840,1732287039197,-500.0,0.0009315,120]
[343014841,1732287039207,-500.0,0.0009315,120]
[343014842,1732287039216,-500.0,0.0009315,120]
[343014843,1732287039225,-500.0,0.0009315,120]
[343014844,1732287039234,-500.0,0.0009315,120]
[343014845,1732287039243,-500.0,0.0009315,120]
[343014846,1732287039252,-500.0,0.0009315,120]
[343014847,1732287039262,-500.0,0.0009315,120]
[343014848,1732287039271,-500.0,0.0009315,120]
[343014849,1732287039281,-500.0,0.0009315,120]
[343014850,1732287039290,-500.0,0.0009315,120]
[343014851,1732287039298,-504.68960087,0.0009315,120]
[343014852,1732287039307,-501.90869397,0.0009315,120]
[343014853,1732287039316,-500.0,0.0009315,120]
[343014854,1732287039325,-500.0,0.0009315,120]
[343014855,1732287039337,-500.0,0.0009315,120]
[343014856,1732287039346,-500.0,0.0009315,120]
[343014857,1732287039359,-500.0,0.0009315,120]
[343014858,1732287039369,-183.91,0.0009315,120]
[343014859,1732287039378,-940.41,0.0009315,120]
[343014860,1732287039387,-500.0,0.0009315,120]
[343014861,1732287039396,-940.41,0.0009315,120]
[343014862,1732287039404,-563.46770301,0.0009315,120]
[343014863,1732287039414,-940.41,0.0009315,120]
[343014864,1732287039423,-500.0,0.0009315,120]
[343014865,1732287039432,-940.41,0.0009315,120]
[343014866,1732287039441,-940.41,0.0009315,120]
[343014867,1732287039450,-940.41,0.0009315,120]
[343014868,1732287039459,-500.0,0.0009315,120]
[343014869,1732287039468,-500.0,0.0009315,120]
[343014870,1732287039477,-500.0,0.0009315,120]
[343014871,1732287039486,-500.0,0.0009315,120]
[343014872,1732287039496,-500.0,0.0009315,120]
[343014873,1732287039506,-346.42,0.0009315,120]
[343014874,1732287039515,-500.0,0.0009315,120]
[343014875,1732287039524,-500.0,0.0009315,120]
[343014876,1732287039533,-500.0,0.0009315,120]
[343014877,1732287039542,-500.0,0.0009315,120]
[343014878,1732287039551,-500.0,0.0009315,120]
[343014879,1732287039560,-500.0,0.0009315,120]
[343014880,1732287039569,-500.0,0.0009315,120]
[343014881,1732287039580,-500.0,0.0009315,120]
[343014882,1732287039591,-500.0,0.0009315,120]
[343014883,1732287039601,-500.0,0.0009315,120]
[343014884,1732287039614,-500.0,0.0009315,120]
[343014885,1732287039625,-500.0,0.0009315,120]
[343014886,1732287039635,-500.0,0.0009315,120]
[343014887,1732287039644,-500.0,0.0009315,120]
[343014888,1732287039655,-500.0,0.0009315,120]
[343014889,1732287039664,-500.0,0.0009315,120]
[343014890,1732287039674,-500.0,0.0009315,120]
[343014891,1732287039683,-500.0,0.0009315,120]
[343014892,1732287039692,-252.72,0.0009315,120]
[343014893,1732287039701,-500.0,0.0009315,120]
[343014894,1732287039711,-500.0,0.0009315,120]
[343014895,1732287039720,-500.0,0.0009315,120]
[343014896,1732287039729,-500.0,0.0009315,120]
[343014897,1732287039739,-500.0,0.0009315,120]
[343014898,1732287039748,-451.15183282,0.0009315,120]
[343014899,1732287039757,-500.0,0.0009315,120]
[343014900,1732287039767,-500.0,0.0009315,120]
[343014902,1732287039776,-500.0,0.0009315,120]
[343014904,1732287039785,-500.0,0.0009315,120]
[343014906,1732287039795,-500.0,0.0009315,120]
[343014908,1732287039804,-500.0,0.0009315,120]
[343014910,1732287039814,-500.0,0.0009315,120]
[343014912,1732287039823,-500.0,0.0009315,120]
[343014914,1732287039833,-500.0,0.0009315,120]
[343014916,1732287039842,-500.0,0.0009315,120]
[343014918,1732287039852,-605.42748783,0.0009315,120]
[343014920,1732287039863,-924.22,0.0009315,120]
[343014921,1732287039872,-500.0,0.0009315,120]
[343014924,1732287039882,-530.05988922,0.0009315,120]
[343014925,1732287039891,-500.0,0.0009315,90]
[343014926,1732287039960,-500.0,0.0009315,90]
[343014927,1732287039976,-500.0,0.0009315,90]
[343014928,1732287039986,-500.0,0.0009315,90]
[343014929,1732287039995,-500.0,0.0009315,120]
[343014930,1732287040005,-560.33,0.0009315,120]
[343014931,1732287040015,-500.0,0.0009315,120]
[343014932,1732287040025,-500.0,0.0009315,120]
[343014933,1732287040034,-500.0,0.0009315,120]
[343014934,1732287040043,-500.0,0.0009315,120]
[343014935,1732287040054,-500.0,0.0009315,120]
[343014936,1732287040063,-151.74,0.0009315,120]
[343014937,1732287040072,-500.0,0.0009315,120]
[343014938,1732287040082,-500.0,0.0009315,120]
[343014939,1732287040091,-500.0,0.0009315,120]
[343014940,1732287040101,-500.0,0.0009315,120]
[343014941,1732287040114,-500.0,0.0009315,120]
[343014942,1732287040123,-500.0,0.0009315,120]
[343014943,1732287040133,-500.0,0.0009315,120]
[343014944,1732287040142,-500.0,0.0009315,120]
[343014945,1732287040152,-500.0,0.0009315,120]
[343014946,1732287040162,-500.0,0.0009315,120]
[343014947,1732287040172,-500.0,0.0009315,120]
[343014948,1732287040181,-500.0,0.0009315,120]
[343014949,1732287040191,-500.0,0.0009315,120]
[343014950,1732287040201,-500.0,0.0009315,120]
[343014951,1732287040211,-500.0,0.0009315,120]
[343014952,1732287040221,-500.0,0.0009315,120]
[343014953,1732287040231,-677.85,0.0009315,120]
[343014954,1732287040240,-500.0,0.0009315,120]
[343014955,1732287040250,-500.0,0.0009315,120]
[343014956,1732287040259,-501.99713824,0.0009315,120]
[343014958,1732287040268,-500.0,0.0009315,120]
[343014959,1732287040278,-171.36,0.0009315,120]
[343014960,1732287040287,-500.0,0.0009315,120]
[343014961,1732287040296,-500.0,0.0009315,120]
[343014962,1732287040306,-500.0,0.0009315,120]
[343014963,1732287040315,-500.0,0.0009315,120]
[343014964,1732287040324,-154.19,0.0009315,120]
[343014965,1732287040334,-500.0,0.0009315,120]
[343014966,1732287040343,-500.0,0.0009315,120]
[343014967,1732287040355,-500.0,0.0009315,120]
[343014968,1732287040364,-500.0,0.0009315,120]
[343014969,1732287040374,-500.0,0.0009315,120]
[343014970,1732287040383,-500.0,0.0009315,120]
[343014971,1732287040393,-500.0,0.0009315,120]
[343014972,1732287040402,-500.0,0.0009315,120]
[343014973,1732287040411,-500.0,0.0009315,120]
[343014974,1732287040421,-500.0,0.0009315,120]
[343014976,1732287040431,-500.0,0.0009315,120]
[343014977,1732287040441,-500.0,0.0009315,120]
[343014978,1732287040451,-500.0,0.0009315,120]
[343014979,1732287040461,-504.56034834,0.0009315,120]
[343014980,1732287040471,-500.0,0.0009315,120]
[343014981,1732287040480,-500.0,0.0009315,120]
[343014982,1732287040490,-500.0,0.0009315,120]
[343014983,1732287040499,-500.0,0.0009315,120]
[343014984,1732287040508,-500.0,0.0009315,120]
[343014985,1732287040517,-500.0,0.0009315,120]
[343014986,1732287040527,-275.05851826,0.0009315,120]
[343014987,1732287040536,-500.0,0.0009315,120]
[343014988,1732287040546,-500.0,0.0009315,120]
[343014989,1732287040555,-500.0,0.0009315,120]
[343014990,1732287040564,-500.0,0.0009315,120]
[343014991,1732287040581,-500.0,0.0009315,120]
[343014992,1732287040590,-500.0,0.0009315,120]
[343014993,1732287040600,-332.98536974,0.0009315,120]
[343014994,1732287040616,-500.0,0.0009315,120]
[343014995,1732287040625,-500.0,0.0009315,120]
[343014996,1732287040634,-500.0,0.0009315,120]
[343014997,1732287040644,-500.0,0.0009315,120]
[343014998,1732287040655,-498.12866446,0.0009315,120]
[343014999,1732287040664,-500.0,0.0009315,120]
[343015000,1732287040674,-500.0,0.0009315,120]
[343015001,1732287040685,-500.0,0.0009315,120]
[343015002,1732287040695,-185.5674458,0.0009315,120]
[343015003,1732287040705,-500.0,0.0009315,120]
[343015004,1732287040715,-500.0,0.0009315,120]
[343015005,1732287040725,-500.0,0.0009315,120]
[343015006,1732287040734,-500.0,0.0009315,120]
[343015007,1732287040743,-500.0,0.0009315,120]
[343015008,1732287040753,-500.0,0.0009315,120]
[343015009,1732287040763,-500.0,0.0009315,120]
[343015010,1732287040772,-233.29,0.0009315,120]
[343015011,1732287040782,-500.0,0.0009315,120]
[343015012,1732287040792,-500.0,0.0009315,120]
[343015013,1732287040801,-500.0,0.0009315,120]
[343015014,1732287040810,-500.0,0.0009315,120]
[343015015,1732287040819,-500.0,0.0009315,120]
[343015016,1732287040828,-500.0,0.0009315,120]
[343015017,1732287040837,-500.0,0.0009315,120]
[343015018,1732287040847,-500.0,0.0009315,60]
[343015019,1732287040859,-500.0,0.0009315,120]
[343015020,1732287040868,-500.0,0.0009315,120]
[343015021,1732287040878,-500.0,0.0009315,60]
[343015022,1732287040887,-500.0,0.0009315,120]
[343015023,1732287040896,-500.0,0.0009315,120]
[343015024,1732287040905,-500.0,0.0009315,120]
[343015025,1732287040915,-500.0,0.0009315,60]
[343015026,1732287040924,-625.83650999,0.0009315,120]
[343015027,1732287040933,-500.0,0.0009315,60]
[343015028,1732287040943,-500.0,0.0009315,120]
[343015029,1732287040952,-500.0,0.0009315,120]
[343015030,1732287040961,-500.0,0.0009315,120]
[343015031,1732287040970,-500.0,0.0009315,120]
[343015032,1732287041041,-192.41586633,0.0009315,120]
[343015033,1732287041050,-500.0,0.0009315,120]
[343015034,1732287041060,-500.0,0.0009315,120]
[343015035,1732287041069,-500.08,0.0009315,120]
[343015036,1732287041078,-236.59,0.0009315,120]
[343015037,1732287041087,-500.0,0.0009315,120]
[343015038,1732287041096,-155.97,0.0009315,120]
[343015039,1732287041106,-500.0,0.0009315,120]
[343015040,1732287041116,-500.0,0.0009315,120]
[343015041,1732287041125,-470.58,0.0009315,120]
[343015042,1732287041134,-500.0,0.0009315,120]
[343015043,1732287041143,-500.0,0.0009315,120]
[343015044,1732287041152,-500.0,0.0009315,120]
[343015045,1732287041161,-500.0,0.0009315,120]
[343015046,1732287041171,-500.0,0.0009315,120]
[343015047,1732287041180,-500.0,0.0009315,120]
[343015048,1732287041189,-500.0,0.0009315,120]
[343015049,1732287041198,-504.52,0.0009315,120]
[343015050,1732287041208,-500.0,0.0009315,120]
[343015051,1732287041218,-500.0,0.0009315,120]
[343015052,1732287041227,-500.0,0.0009315,120]
[343015053,1732287041237,-500.0,0.0009315,120]
[343015054,1732287041247,-506.58091028,0.0009315,120]
[343015055,1732287041256,-500.0,0.0009315,120]
[343015056,1732287041266,-500.0,0.0009315,120]
[343015057,1732287041276,-449.71522212,0.0009315,120]
[343015058,1732287041286,-629.06395781,0.0009315,120]
[343015059,1732287041295,-500.0,0.0009315,120]
[343015060,1732287041305,-519.94568164,0.0009315,120]
[343015061,1732287041314,-500.0,0.0009315,120]
[343015062,1732287041323,-500.0,0.0009315,120]
[343015063,1732287041334,-500.0,0.0009315,120]
[343015064,1732287041343,-500.0,0.0009315,120]
[343015065,1732287041352,-500.0,0.0009315,120]
[343015066,1732287041365,-500.0,0.0009315,120]
[343015067,1732287041380,-500.0,0.0009315,120]
[343015068,1732287041389,-500.0,0.0009315,120]
[343015069,1732287041398,-500.0,0.0009315,120]
[343015070,1732287041407,-500.0,0.0009315,120]
[343015071,1732287041416,-175.6846336,0.0009315,120]
[343015072,1732287041425,-500.0,0.0009315,120]
[343015073,1732287041434,-500.0,0.0009315,120]
[343015074,1732287041444,-500.0,0.0009315,120]
[343015075,1732287041453,-500.0,0.0009315,120]
[343015076,1732287041462,-500.0,0.0009315,120]
[343015077,1732287041471,-500.0,0.0009315,120]
[343015078,1732287041481,-500.0,0.0009315,120]
[343015079,1732287041490,-500.0,0.0009315,120]
[343015080,1732287041499,-469.65417116,0.0009315,120]